[Event "Austrian Women Bundesliga 2023-24"]
[Site "Austria"]
[Date "2024.04.14"]
[Round "9.19"]
[White "Deak-Sala, Emilia"]
[Black "Karacsonyi, Kata"]
[Result "1-0"]
[ECO "B62"]
[WhiteElo "2053"]
[BlackElo "2152"]
[Annotator "TA"]
[PlyCount "127"]
[EventDate "2023.11.21"]
[EventType "team-tourn"]
[EventCountry "AUT"]
[SourceTitle "playchess.com"]
[Source "ChessBase"]
[SourceQuality "1"]
[TimeControl "40/5400+30:1800+30"]

{[%evp 13,127,21,35,24,20,27,31,-108,-100,-92,-104,-108,25,18,0,34,41,35,58,68,75,68,104,106,118,92,85,62,60,67,58,62,60,66,87,79,97,98,116,98,108,111,106,97,95,103,112,87,87,70,125,93,202,213,275,275,257,211,225,223,278,290,283,270,285,282,377,320,437,413,462,437,423,402,1033,1040,1040,1040,1019,970,1608,1555,1552,1552,1552,1552,1518,1506,1503,1480,1460,1436,1377,1377,1340,1303,4945,1155,4953,4945,4945,4938,4938,4938,4931,4924,4927,4952,29983,29984,29984,29985,29985,29986,29986,29987]} 1. e4 {[%emt 0:00:04]} c5 {[%emt 0:00:07]} 2. Nf3 {[%emt 0:00:48]} d6 {[%emt 0:00:33]} 3. d4 {[%emt 0:00:04]} cxd4 {[%emt 0:00:04]} 4. Nxd4 {[%emt 0:00:02]} Nf6 {[%emt 0:00:09]} 5. Nc3 {[%emt 0:00:09]} Nc6 {[%emt 0:00:30]} 6. Bg5 {[%emt 0:00:15]} e6 {[%emt 0:00:06]} 7. Qd3 {[%emt 0:00:04]} Bd7 {[%emt 0:00:10] B62: Sicilian: Richter-Rauzer: 6...e6: Unusual White 7th moves.} 8. Ndb5 {[%emt 0:00:05]} Nb4 $1 {[%emt 0:06:50]} 9. Qd1 {[%emt 0:00:14]} Qb8 {[%emt 0:00:24] [#]} 10. e5 {[%emt 0:20:10]} (10. Bxf6 $1 $14 {stays ahead.} gxf6 11. Nd4) 10... dxe5 $17 {[%emt 0:07:30]} 11. Bxf6 {[%emt 0:00:15]} gxf6 {[%emt 0:00:07]} 12. a3 {[%emt 0:03:30] [#]} Nd5 $146 {[%emt 0:23:23]} (12... a6 $1 $17 {[%mdl 512]} 13. axb4 axb5 (13... Bxb5 14. Nxb5 Bxb4+ 15. c3 $16) 14. Bxb5 Bxb5 15. Nxb5 Rxa1 (15... Bxb4+ 16. c3 $17) 16. Qxa1 Bxb4+ 17. c3 Be7) ({Predecessor:} 12... Nc6 13. Ne4 Be7 14. Nbd6+ Kf8 15. Qh5 Bxd6 16. Nxf6 Ke7 17. Ne4 Nd4 18. Qg5+ Ke8 {0-1 Nikitenko,M (2526)-Petrosyan,M (2629) Aktobe Dvorkovich op 2023 (5)}) 13. Nxd5 $11 {[%emt 0:00:36]} exd5 {[%emt 0:00:07]} 14. Qxd5 {[%emt 0:00:07]} Bc6 {[%emt 0:00:30]} 15. Qb3 {[%emt 0:05:58]} a6 {[%emt 0:00:41]} 16. Nc3 {[%emt 0:08:16]} Qc7 {[%emt 0:21:57]} 17. O-O-O {[%emt 0:03:57]} b5 {[%emt 0:03:42]} 18. Nd5 {[%emt 0:05:26]} Bxd5 {[%emt 0:02:16]} 19. Qxd5 {[%emt 0:00:40]} Rd8 {[%emt 0:06:29]} 20. Qxd8+ {[%emt 0:01:37]} Qxd8 {[%emt 0:00:05]} 21. Rxd8+ {[%emt 0:00:06]} Kxd8 {[%emt 0:00:02]} 22. b4 {[%emt 0:04:41]} Rg8 {[%emt 0:02:56]} 23. g3 {[%emt 0:02:42]} Rg4 {[%emt 0:05:20]} 24. Bd3 {[%emt 0:05:50]} h6 {[%emt 0:07:23]} 25. c3 {[%emt 0:03:00]} Bd6 {[%emt 0:01:53]} 26. f3 {[%emt 0:02:00]} Rg8 {[%emt 0:00:20]} 27. Kb2 {[%emt 0:03:55]} Ke7 {[%emt 0:02:49]} 28. Kb3 {[%emt 0:05:14]} Rd8 {[%emt 0:01:30]} 29. Be4 {[%emt 0:01:13]} Bc7 {[%emt 0:00:07]} 30. g4 {[%emt 0:05:37]} Rd2 {[%emt 0:02:33]} 31. h4 {[%emt 0:00:27]} Bb6 {[%emt 0:01:14]} (31... a5 $14 32. bxa5 Bxa5) 32. Ra1 {[%emt 0:01:19]} h5 {[%emt 0:03:00]} (32... a5 $16 33. bxa5 Bxa5) 33. gxh5 $18 {[%emt 0:01:45]} Ke6 {[%emt 0:00:05]} 34. h6 {[%emt 0:01:16]} f5 {[%emt 0:00:40]} 35. h7 {[%emt 0:00:41]} Rd8 {[%emt 0:00:05]} 36. Bb7 {[%emt 0:00:29]} Rh8 {[%emt 0:01:03]} 37. Bxa6 {[%emt 0:00:24]} Rxh7 {[%emt 0:00:05]} 38. Bxb5 {[%emt 0:00:35]} e4 {[%emt 0:01:55]} 39. a4 {[%emt 0:00:59]} Rxh4 {[%emt 0:00:44]} 40. a5 {[%emt 0:01:03]} Ba7 {[%emt 0:00:24]} 41. Bc4+ {[%emt 0:34:19]} Ke5 {[%emt 0:20:01]} 42. fxe4 {[%emt 0:00:00]} (42. Bxf7 exf3 43. b5 Be3 $16) 42... f4 {[%emt 0:06:06]} 43. b5 {[%emt 0:00:00]} (43. Bxf7 f3 44. b5 Be3 $18) 43... Rh6 {[%emt 0:02:19]} (43... Be3 $142 44. Re1 (44. Bxf7 f3 $18) 44... Rh3) 44. b6 $18 {[%emt 0:00:00]} Bxb6 {[%emt 0:00:21]} 45. axb6 {[%emt 0:00:00]} Rxb6+ {[%emt 0:00:03]} 46. Kc2 {[%emt 0:00:00]} Kxe4 {[%emt 0:00:19]} 47. Bxf7 {[%emt 0:00:00]} f3 {[%emt 0:03:01]} 48. Bc4 {[%emt 0:00:00]} Rd6 {[%emt 0:01:57]} 49. Re1+ {[%emt 0:00:00]} Kf4 {[%emt 0:00:04]} 50. Bd3 {[%emt 0:00:00]} Rd8 {[%emt 0:00:52]} 51. c4 {[%emt 0:00:00]} f2 {[%emt 0:00:24]} 52. Rc1 {[%emt 0:00:00]} ({Inferior is} 52. Re4+ Kf3 53. Re7 Rxd3 54. Rf7+ Ke4 55. Rxf2 Ra3 $11) 52... Ke3 {[%emt 0:00:40]} 53. Bf1 {[%emt 0:00:00]} Rc8 {[%emt 0:00:32]} 54. Rd1 {[%emt 0:00:00]} Re8 {[%emt 0:00:23]} 55. c5 {[%emt 0:00:00]} Re5 {[%emt 0:00:33]} 56. Rd3+ {[%emt 0:00:20]} Kf4 {[%emt 0:00:01]} 57. Rc3 {[%emt 0:00:52]} Re1 {[%emt 0:00:17]} 58. Bb5 {[%emt 0:01:02]} Re5 {[%emt 0:00:43]} 59. Ba6 {[%emt 0:00:54]} Re8 {[%emt 0:01:02]} 60. c6 {[%emt 0:00:42]} Ra8 {[%emt 0:00:02]} 61. c7 {[%emt 0:02:03]} Rc8 {[%emt 0:00:44]} 62. Kd2 {[%emt 0:03:30]} Ke5 {[%emt 0:00:35] [#]} 63. Ke2 $1 {[%emt 0:00:20]} (63. Bxc8 f1=Q $11) 63... Rf8 {[%emt 0:00:41]} 64. Kf1 {[%emt 0:12:55]} (64. c8=B {gets mated.} f1=Q+ (64... f1=R 65. Re3+ Kd4 66. Rd3+ Kc5 67. Bcb7 $14) 65. Ke3 Rf3+ 66. Kd2 Rf2+ 67. Ke3 Qe1+ 68. Kd3 Qe4#) 1-0

[Event "Austrian Women Bundesliga 2023-24"]
[Site "Austria"]
[Date "2024.04.14"]
[Round "9.20"]
[White "Exler, Veronika"]
[Black "Stadlinger, Lea"]
[Result "1-0"]
[ECO "E06"]
[WhiteElo "2171"]
[BlackElo "1936"]
[Annotator "TA"]
[PlyCount "57"]
[EventDate "2023.11.21"]
[EventType "team-tourn"]
[EventCountry "AUT"]
[SourceTitle "playchess.com"]
[Source "ChessBase"]
[SourceQuality "1"]
[TimeControl "40/5400+30:1800+30"]

{[%evp 11,57,-5,22,5,40,27,20,18,22,11,24,19,50,45,50,0,46,47,58,39,35,32,32,27,72,64,78,15,65,66,69,58,91,75,128,114,124,115,117,125,111,76,226,151,872,852,1331,1273]} 1. d4 {[%emt 0:00:01]} d5 {[%emt 0:00:06]} 2. c4 {[%emt 0:00:04]} e6 {[%emt 0:00:04]} 3. Nf3 {[%emt 0:00:12]} Nf6 {[%emt 0:00:07]} 4. g3 {[%emt 0:00:10]} Be7 {[%emt 0:01:01]} 5. Bg2 {[%emt 0:00:22]} O-O {[%emt 0:00:44]} 6. Qc2 {[%emt 0:01:48]} a6 {[%emt 0:18:13]} 7. b3 {[%emt 0:13:30]} b6 {[%emt 0:18:29]} 8. O-O {[%emt 0:09:11]} Bb7 {[%emt 0:00:56]} 9. cxd5 {[%emt 0:01:48] The position is equal.} exd5 {[%emt 0:01:33]} 10. Bf4 {[%emt 0:14:09]} c5 {[%emt 0:05:37]} 11. Nc3 {[%emt 0:04:32]} Nc6 {[%emt 0:10:15]} 12. Rad1 {[%emt 0:10:25]} h6 {[%emt 0:09:58]} 13. h4 {[%emt 0:04:42]} (13. dxc5 $14 bxc5 14. Na4) 13... Bd6 {[%emt 0:06:36]} (13... Re8 $11) 14. Bxd6 $14 {[%emt 0:15:25]} Qxd6 {[%emt 0:00:37]} 15. Na4 {[%emt 0:00:11]} cxd4 {[%emt 0:09:45]} 16. Nxd4 {[%emt 0:02:00]} (16. Nxb6 $2 Nb4 17. Qb2 Qxb6 $19) 16... Rac8 {[%emt 0:01:41] Strongly threatening ...Nxd4.} 17. Qd2 {[%emt 0:09:11]} (17. Nxb6 Nxd4 18. Nxc8 Rxc8 $15 (18... Qe5 $2 19. Ne7+ Kh8 20. Rxd4 $18)) 17... Nxd4 {[%emt 0:06:12]} 18. Qxd4 {[%emt 0:00:01]} b5 {[%emt 0:01:15] [#]} 19. Nc3 {[%emt 0:02:27]} ({Better is} 19. Nb6 $1 $16 {[%cal Rb6c8]} Rc5 20. b4) 19... Rfd8 {[%emt 0:00:35]} (19... Qc5 $11 20. Nxd5 (20. Qxc5 Rxc5 21. Nb1 Rc2 $17) 20... Bxd5 21. Bxd5 Nxd5 22. Qxd5 Qxd5 23. Rxd5 Rc2) 20. e4 {[%emt 0:03:06]} Qc5 {[%emt 0:03:20]} 21. Nxd5 {[%emt 0:01:22] White is more active.} Nxd5 {[%emt 0:00:37]} 22. exd5 {[%emt 0:00:09]} Rd6 {[%emt 0:00:55]} (22... Qxd4 $142 23. Rxd4 Rd6) 23. Qxc5 $16 {[%emt 0:04:28]} Rxc5 {[%emt 0:00:07]} 24. Rc1 {[%emt 0:00:13]} Rxc1 {[%emt 0:00:57]} 25. Rxc1 {[%emt 0:00:01]} Kf8 {[%emt 0:01:34]} (25... Bxd5 $2 26. Rd1 $18) 26. f4 {[%emt 0:01:20]} f5 {[%emt 0:01:23]} (26... Bxd5 $2 {is the wrong capture.} 27. Rd1 Rg6 28. Rxd5 $18 (28. Bxd5 Rxg3+ 29. Kf2 Rg4 $18)) (26... Ke8 $16 {is a better defense.} 27. Bf3 g6 (27... Bxd5 $2 28. Rd1 $18)) 27. Kf2 {[%emt 0:01:03] Re1 is the strong threat.} Ke7 $2 {[%emt 0:00:13]} (27... Bxd5 $2 {too greedy.} 28. Rd1 $18) (27... Rd7 $16 28. Rd1 Ke7 29. d6+ Ke6) 28. Rc7+ $18 {[%emt 0:01:18]} Rd7 {[%emt 0:00:06] [#]} 29. d6+ $1 {[%emt 0:00:19][%mdl 512] Weighted Error Value: White=0.19 (very precise) /Black=0.29 (precise) .  Loses game:     	---       	Black=1      Mistake:       	White=2     	Black=4      Inaccurate:     	White=2     	Black=5      OK:         	White=8     	Black=3      Best:        	White=1     	---} 1-0